[Event "MČR v bleskovém šachu družstev 2019"]
[Site "Teplice, Czech Republic"]
[Date "2019.09.14"]
[Round "14.7"]
[White "Dolezal, Radoslav"]
[Black "Richtr, Zdenek"]
[Result "1-0"]
[TimeControl "3 mim. + 2 s"]
[WhiteTitle "IM"]
[WhiteFideId "304735"]
[BlackFideId "301248"]
[WhiteElo "2359"]
[BlackElo "2138"]

1. d4 {[%clk 00:03:02]} d5 {[%clk 00:02:58]} {[%emt 00:00:07]} 2. Nf3 {[%clk
00:03:02]} {[%emt 00:00:01]} e6 {[%clk 00:02:58]} {[%emt 00:00:02]} 3. g3
{[%clk 00:03:02]} {[%emt 00:00:01]} f5 {[%clk 00:02:59]} {[%emt 00:00:02]} 4.
Bg2 {[%clk 00:03:03]} Nf6 {[%clk 00:03:00]} 5. O-O {[%clk 00:03:04]} {[%emt
00:00:02]} Bd6 {[%clk 00:03:01]} 6. c4 {[%clk 00:03:05]} {[%emt 00:00:02]} c6
{[%clk 00:03:02]} 7. Nc3 {[%clk 00:02:59]} {[%emt 00:00:09]} O-O {[%clk
00:03:02]} {[%emt 00:00:01]} 8. c5 {[%clk 00:02:59]} {[%emt 00:00:02]} Be7
{[%clk 00:02:58]} {[%emt 00:00:06]} 9. Bf4 {[%clk 00:02:57]} {[%emt 00:00:04]}
b6 {[%clk 00:02:56]} {[%emt 00:00:05]} 10. b4 {[%clk 00:02:57]} {[%emt
00:00:02]} a5 {[%clk 00:02:56]} {[%emt 00:00:01]} 11. a3 {[%clk 00:02:57]}
{[%emt 00:00:02]} Ba6 {[%clk 00:02:42]} {[%emt 00:00:16]} 12. Ne5 {[%clk
00:02:40]} {[%emt 00:00:19]} Nfd7 {[%clk 00:02:36]} {[%emt 00:00:09]} 13. Nd3
{[%clk 00:01:16]} {[%emt 00:01:25]} Bxd3 {[%clk 00:02:29]} {[%emt 00:00:09]} 14.
Qxd3 {[%clk 00:01:16]} {[%emt 00:00:01]} b5 {[%clk 00:02:23]} {[%emt 00:00:07]}
15. bxa5 {[%clk 00:00:56]} {[%emt 00:00:23]} Qxa5 {[%clk 00:02:18]} {[%emt
00:00:06]} 16. Bd2 {[%clk 00:00:49]} {[%emt 00:00:09]} Qa6 {[%clk 00:02:13]}
{[%emt 00:00:08]} 17. Qe3 {[%clk 00:00:41]} {[%emt 00:00:09]} Rf6 {[%clk
00:02:11]} {[%emt 00:00:04]} 18. Rfb1 {[%clk 00:00:34]} {[%emt 00:00:09]} Qa7
{[%clk 00:01:48]} {[%emt 00:00:25]} 19. a4 {[%clk 00:00:34]} {[%emt 00:00:03]}
b4 {[%clk 00:01:48]} {[%emt 00:00:01]} 20. Rxb4 {[%clk 00:00:23]} {[%emt
00:00:13]} Nxc5 {[%clk 00:01:49]} {[%emt 00:00:01]} 21. dxc5 {[%clk 00:00:09]}
{[%emt 00:00:16]} Bxc5 {[%clk 00:01:49]} {[%emt 00:00:01]} 22. Qf4 {[%clk
00:00:10]} Bxb4 {[%clk 00:01:40]} {[%emt 00:00:12]} 23. Qxb4 {[%clk 00:00:11]}
Na6 {[%clk 00:01:36]} {[%emt 00:00:05]} 24. Qd6 {[%clk 00:00:10]} {[%emt
00:00:04]} Qc7 {[%clk 00:01:29]} {[%emt 00:00:10]} 25. Bf4 {[%clk 00:00:06]}
{[%emt 00:00:06]} Qxd6 {[%clk 00:01:17]} {[%emt 00:00:13]} 26. Bxd6 {[%clk
00:00:07]} {[%emt 00:00:01]} Rf7 {[%clk 00:01:13]} {[%emt 00:00:05]} 27. e3
{[%clk 00:00:08]} {[%emt 00:00:01]} Rd7 {[%clk 00:01:11]} {[%emt 00:00:04]} 28.
Be5 {[%clk 00:00:08]} {[%emt 00:00:02]} c5 {[%clk 00:01:09]} {[%emt 00:00:04]}
29. Bf1 {[%clk 00:00:07]} {[%emt 00:00:03]} c4 {[%clk 00:01:07]} {[%emt
00:00:03]} 30. Rb1 {[%clk 00:00:08]} {[%emt 00:00:01]} Nc5 {[%clk 00:01:05]}
{[%emt 00:00:04]} 31. Rb4 {[%clk 00:00:07]} {[%emt 00:00:02]} Ne4 {[%clk
00:01:04]} {[%emt 00:00:03]} 32. Be2 {[%clk 00:00:06]} {[%emt 00:00:04]} Rda7
{[%clk 00:01:00]} {[%emt 00:00:07]} 33. Bd1 {[%clk 00:00:04]} {[%emt 00:00:03]}
Kf7 {[%clk 00:00:51]} {[%emt 00:00:11]} 34. Bd4 {[%clk 00:00:04]} {[%emt
00:00:02]} Rd7 {[%clk 00:00:49]} {[%emt 00:00:03]} 35. Nxe4 {[%clk 00:00:03]}
{[%emt 00:00:03]} fxe4 {[%clk 00:00:50]} {[%emt 00:00:01]} 36. f3 {[%clk
00:00:03]} {[%emt 00:00:03]} exf3 {[%clk 00:00:49]} {[%emt 00:00:04]} 37. Bxf3
{[%clk 00:00:05]} Ra6 {[%clk 00:00:40]} {[%emt 00:00:10]} 38. Kf2 {[%clk
00:00:06]} {[%emt 00:00:01]} Rc6 {[%clk 00:00:40]} {[%emt 00:00:03]} 39. Bc3
{[%clk 00:00:07]} {[%emt 00:00:01]} Rcc7 {[%clk 00:00:40]} {[%emt 00:00:02]} 40.
Ke2 {[%clk 00:00:07]} {[%emt 00:00:02]} Rb7 {[%clk 00:00:42]} 41. Kd2 {[%clk
00:00:06]} {[%emt 00:00:03]} Rxb4 {[%clk 00:00:42]} {[%emt 00:00:01]} 42. Bxb4
{[%clk 00:00:08]} Ra7 {[%clk 00:00:41]} {[%emt 00:00:03]} 43. a5 {[%clk
00:00:09]} {[%emt 00:00:01]} Ke8 {[%clk 00:00:42]} 44. Kc3 {[%clk 00:00:10]}
{[%emt 00:00:02]} Kd7 {[%clk 00:00:43]} {[%emt 00:00:01]} 45. Bg4 {[%clk
00:00:10]} {[%emt 00:00:02]} g6 {[%clk 00:00:42]} {[%emt 00:00:02]} 46. Bd1
{[%clk 00:00:07]} {[%emt 00:00:04]} e5 {[%clk 00:00:40]} {[%emt 00:00:04]} 47.
Ba4+ {[%clk 00:00:08]} {[%emt 00:00:01]} Ke6 {[%clk 00:00:41]} 48. Bc6 {[%clk
00:00:08]} {[%emt 00:00:03]} Ra6 {[%clk 00:00:40]} {[%emt 00:00:03]} 49. Bb7
{[%emt 00:00:01]} Ra7 50. a6 {[%clk 00:00:10]} g5 {[%clk 00:00:40]} {[%emt
00:00:03]} 51. Bc5 {[%clk 00:00:11]} {[%emt 00:00:01]} d4+ {[%clk 00:00:33]}
{[%emt 00:00:08]} 52. exd4 {[%clk 00:00:12]} {[%emt 00:00:02]} exd4+ {[%clk
00:00:33]} {[%emt 00:00:01]} 53. Kxd4 {[%clk 00:00:12]} {[%emt 00:00:02]} c3
{[%clk 00:00:33]} {[%emt 00:00:02]} 54. Kxc3 {[%clk 00:00:13]} {[%emt
00:00:01]} h5 {[%clk 00:00:28]} {[%emt 00:00:07]} 55. Bxa7 {[%clk 00:00:13]}
{[%emt 00:00:02]} Kf5 {[%clk 00:00:30]} 56. Be3 {[%clk 00:00:14]} {[%emt
00:00:02]} Kg4 {[%clk 00:00:31]} 57. Bxg5 {[%clk 00:00:15]} {[%emt 00:00:01]}
Kxg5 {[%clk 00:00:32]} {[%emt 00:00:01]} 58. h3 {[%clk 00:00:16]} h4 {[%clk
00:00:33]} {[%emt 00:00:01]} 59. gxh4+ {[%clk 00:00:17]} {[%emt 00:00:01]} Kxh4
{[%clk 00:00:34]} 60. Bc8 {[%clk 00:00:18]} Kg3 {[%clk 00:00:36]} 61. a7 {[%clk
00:00:20]} {[%emt 00:00:02]} 1-0

[Event "MČR v bleskovém šachu družstev 2019"]
[Site "Teplice, Czech Republic"]
[Date "2019.09.14"]
[Round "14.8"]
[White "Hosnedl, Matyas"]
[Black "Postupa, Pavel"]
[Result "0-1"]
[TimeControl "3 mim. + 2 s"]
[WhiteFideId "390011"]
[BlackFideId "326410"]
[WhiteElo "1852"]
[BlackElo "2184"]

1. e4 {[%clk 00:03:03]} c5 {[%clk 00:03:03]} {[%emt 00:00:03]} 2. Nf3 {[%clk
00:03:05]} d6 {[%clk 00:03:05]} 3. d4 {[%clk 00:03:06]} cxd4 {[%emt 00:00:01]}
4. Nxd4 Nf6 {[%clk 00:03:07]} 5. Nc3 {[%clk 00:03:08]} {[%emt 00:00:01]} a6
{[%clk 00:03:08]} 6. Bg5 {[%clk 00:03:08]} {[%emt 00:00:03]} Nbd7 {[%clk
00:03:08]} {[%emt 00:00:01]} 7. f4 {[%clk 00:03:09]} {[%emt 00:00:01]} Qc7
{[%clk 00:03:08]} {[%emt 00:00:04]} 8. Qe2 {[%clk 00:03:10]} h6 {[%clk
00:03:04]} {[%emt 00:00:07]} 9. Bh4 {[%clk 00:03:10]} e5 {[%clk 00:03:04]}
{[%emt 00:00:02]} 10. fxe5 {[%clk 00:02:50]} {[%emt 00:00:22]} dxe5 {[%clk
00:03:02]} {[%emt 00:00:04]} 11. Nb3 {[%clk 00:02:50]} {[%emt 00:00:02]} Bb4
{[%clk 00:03:00]} {[%emt 00:00:05]} 12. Qd3 {[%clk 00:02:33]} {[%emt 00:00:18]}
g5 {[%clk 00:02:46]} {[%emt 00:00:16]} 13. Bg3 {[%clk 00:02:28]} {[%emt
00:00:07]} Bxc3+ {[%clk 00:02:43]} {[%emt 00:00:05]} 14. bxc3 {[%clk 00:02:27]}
{[%emt 00:00:03]} b5 {[%clk 00:02:38]} {[%emt 00:00:06]} 15. c4 {[%clk
00:02:11]} {[%emt 00:00:18]} Bb7 {[%clk 00:02:36]} {[%emt 00:00:04]} 16. cxb5
{[%clk 00:02:05]} {[%emt 00:00:09]} Bxe4 {[%clk 00:02:30]} {[%emt 00:00:07]} 17.
Qc4 {[%clk 00:02:05]} {[%emt 00:00:02]} Qxc4 {[%clk 00:02:13]} {[%emt
00:00:19]} 18. Bxc4 {[%clk 00:02:06]} {[%emt 00:00:01]} axb5 {[%clk 00:02:13]}
{[%emt 00:00:02]} 19. Bxb5 {[%clk 00:02:06]} {[%emt 00:00:02]} O-O {[%clk
00:02:13]} {[%emt 00:00:02]} 20. O-O {[%clk 00:02:02]} {[%emt 00:00:06]} Bxc2
{[%clk 00:02:13]} {[%emt 00:00:02]} 21. Nd2 {[%clk 00:01:48]} {[%emt 00:00:15]}
Ba4 {[%clk 00:01:58]} {[%emt 00:00:17]} 22. Bxa4 {[%clk 00:01:45]} {[%emt
00:00:06]} Rxa4 {[%clk 00:01:59]} {[%emt 00:00:01]} 23. Bxe5 {[%clk 00:01:45]}
{[%emt 00:00:02]} Nxe5 {[%clk 00:01:53]} {[%emt 00:00:08]} 24. Rxf6 {[%clk
00:01:46]} {[%emt 00:00:01]} Kg7 {[%clk 00:01:46]} {[%emt 00:00:09]} 25. Rf5
{[%clk 00:01:36]} {[%emt 00:00:11]} Ng6 {[%clk 00:01:19]} {[%emt 00:00:28]} 26.
Nb3 {[%clk 00:01:24]} {[%emt 00:00:15]} Rfa8 {[%clk 00:01:14]} {[%emt
00:00:07]} 27. Raf1 {[%clk 00:01:18]} {[%emt 00:00:08]} R8a7 {[%clk 00:01:11]}
{[%emt 00:00:05]} 28. R1f2 {[%clk 00:01:10]} {[%emt 00:00:11]} Nf4 {[%clk
00:01:11]} {[%emt 00:00:03]} 29. h4 {[%clk 00:00:57]} {[%emt 00:00:15]} f6
{[%clk 00:01:08]} {[%emt 00:00:05]} 30. hxg5 {[%clk 00:00:51]} {[%emt
00:00:09]} hxg5 {[%clk 00:01:08]} {[%emt 00:00:01]} 31. Kh2 {[%clk 00:00:45]}
{[%emt 00:00:08]} Rxa2 {[%clk 00:01:08]} {[%emt 00:00:02]} 32. Rd2 {[%clk
00:00:10]} {[%emt 00:00:37]} Rxd2 {[%clk 00:01:00]} {[%emt 00:00:10]} 33. Nxd2
{[%clk 00:00:11]} {[%emt 00:00:01]} Ra2 {[%clk 00:01:01]} 34. Ne4 {[%clk
00:00:13]} Rxg2+ {[%emt 00:00:07]} 35. Kh1 Re2 {[%clk 00:00:57]} {[%emt
00:00:03]} 36. Ng3 {[%clk 00:00:07]} {[%emt 00:00:10]} Re1+ {[%clk 00:00:53]}
{[%emt 00:00:06]} 37. Kh2 {[%clk 00:00:08]} Kg6 {[%clk 00:00:53]} {[%emt
00:00:02]} 38. Ra5 {[%clk 00:00:09]} Rb1 {[%clk 00:00:52]} {[%emt 00:00:04]} 39.
Ra6 {[%clk 00:00:11]} Rb2+ {[%clk 00:00:52]} {[%emt 00:00:02]} 40. Kh1 {[%clk
00:00:12]} {[%emt 00:00:02]} Rb4 {[%clk 00:00:46]} {[%emt 00:00:07]} 41. Kg1
{[%clk 00:00:11]} {[%emt 00:00:04]} g4 {[%clk 00:00:45]} {[%emt 00:00:03]} 42.
Kf2 {[%clk 00:00:09]} {[%emt 00:00:04]} Nh3+ {[%clk 00:00:39]} {[%emt
00:00:07]} 43. Kg2 {[%clk 00:00:05]} {[%emt 00:00:06]} Rb2+ {[%emt 00:00:02]}
44. Kf1 Rf2+ {[%emt 00:00:02]} 45. Ke1 Rf3 {[%clk 00:00:37]} {[%emt 00:00:05]}
46. Nf1 {[%clk 00:00:09]} {[%emt 00:00:02]} g3 {[%clk 00:00:31]} {[%emt
00:00:08]} 47. Nd2 {[%emt 00:00:07]} Re3+ {[%clk 00:00:25]} {[%emt 00:00:07]}
48. Kf1 {[%clk 00:00:03]} {[%emt 00:00:04]} Nf4 {[%clk 00:00:24]} {[%emt
00:00:03]} 49. Ra5 {[%clk 00:00:03]} {[%emt 00:00:03]} g2+ {[%clk 00:00:24]}
{[%emt 00:00:02]} 50. Kg1 {[%clk 00:00:04]} {[%emt 00:00:01]} Re1+ {[%clk
00:00:26]} 51. Nb1 {[%emt 00:00:07]} 0-1

[Event "MČR v bleskovém šachu družstev 2019"]
[Site "Teplice, Czech Republic"]
[Date "2019.09.14"]
[Round "14.9"]
[White "Soural, Jan"]
[Black "Vykouk, Jan"]
[Result "1/2-1/2"]
[TimeControl "3 mim. + 2 s"]
[BlackTitle "IM"]
[WhiteFideId "311928"]
[WhiteElo "2107"]
[BlackElo "2439"]

1. d4 {[%emt 00:10:19]} Nf6 2. c4 {[%emt 00:00:01]} e6 {[%emt 00:00:02]} 3. g3
{[%emt 00:00:04]} c5 4. d5 {[%emt 00:00:03]} exd5 {[%emt 00:00:03]} 5. cxd5 d6
{[%emt 00:00:01]} 6. Nc3 {[%emt 00:00:01]} g6 {[%emt 00:00:02]} 7. Bg2 {[%emt
00:00:02]} Bg7 8. Nf3 {[%emt 00:00:01]} O-O {[%emt 00:00:02]} 9. O-O {[%emt
00:00:03]} Re8 10. Bf4 {[%emt 00:00:02]} Ne4 {[%emt 00:00:01]} 11. Nxe4 {[%emt
00:00:49]} Rxe4 {[%emt 00:00:01]} 12. Nd2 Rxf4 {[%emt 00:00:02]} 13. gxf4
{[%emt 00:00:01]} Bxb2 {[%emt 00:00:02]} 14. Rb1 {[%emt 00:00:22]} Bg7 {[%emt
00:00:01]} 15. Nc4 {[%emt 00:00:12]} b6 {[%emt 00:00:08]} 16. Qd2 {[%emt
00:00:15]} Ba6 {[%emt 00:00:04]} 17. Rbc1 {[%emt 00:00:05]} Bxc4 {[%emt
00:00:05]} 18. Rxc4 {[%emt 00:00:01]} Nd7 {[%emt 00:00:01]} 19. Rb1 {[%emt
00:00:14]} Nf6 {[%emt 00:00:34]} 20. e3 {[%emt 00:00:15]} Qe7 {[%emt 00:00:03]}
21. a4 {[%emt 00:00:06]} Nd7 {[%emt 00:00:14]} 22. a5 {[%emt 00:00:16]} Rb8
{[%emt 00:00:11]} 23. axb6 {[%emt 00:00:14]} axb6 {[%emt 00:00:03]} 24. Rb5
{[%emt 00:00:23]} Ra8 {[%emt 00:00:05]} 25. Bh3 {[%emt 00:00:03]} f5 {[%emt
00:00:03]} 26. Qc2 {[%emt 00:00:03]} Ra1+ {[%emt 00:00:39]} 27. Rb1 {[%emt
00:00:02]} b5 {[%emt 00:00:08]} 28. Rxa1 {[%emt 00:00:09]} Bxa1 {[%emt
00:00:01]} 29. Qb1 {[%emt 00:00:04]} bxc4 {[%emt 00:00:03]} 30. Qxa1 Nf6 {[%emt
00:00:05]} 31. Bg2 {[%emt 00:00:01]} Ne4 {[%emt 00:00:12]} 32. Qc1 {[%emt
00:00:07]} c3 {[%emt 00:00:09]} 33. Bxe4 {[%emt 00:00:03]} Qxe4 {[%emt
00:00:02]} 34. Qxc3 Qxd5 {[%emt 00:00:02]} 35. Qf6 c4 {[%emt 00:00:28]} 36. h4
Qd1+ {[%emt 00:00:07]} 37. Kh2 {[%emt 00:00:03]} Qf3 {[%emt 00:00:12]} 38. Qd8+
{[%emt 00:00:04]} Kf7 {[%emt 00:00:04]} 39. Qd7+ Kg8 {[%emt 00:00:05]} 40. Qe8+
{[%emt 00:00:02]} Kg7 41. Qe7+ Kg8 {[%emt 00:00:04]} 42. Qe8+ {[%emt 00:00:01]}
Kg7 43. Qe7+ Kg8 44. Qe8+ {[%emt 00:00:02]} 1/2-1/2

[Event "MČR v bleskovém šachu družstev 2019"]
[Site "Teplice, Czech Republic"]
[Date "2019.09.14"]
[Round "14.10"]
[White "Studnicka, Tomas"]
[Black "Vokoun, Jan"]
[Result "1/2-1/2"]
[TimeControl "3 mim. + 2 s"]
[WhiteTitle "IM"]
[BlackTitle "FM"]
[BlackFideId "301647"]
[WhiteElo "2215"]
[BlackElo "2123"]

1. d4 {[%clk 00:03:03]} Nf6 {[%clk 00:03:01]} {[%emt 00:00:03]} 2. c4 {[%clk
00:03:02]} {[%emt 00:00:04]} b6 {[%clk 00:02:55]} {[%emt 00:00:07]} 3. Nc3
{[%clk 00:03:02]} {[%emt 00:00:01]} Bb7 {[%clk 00:02:56]} 4. f3 {[%clk
00:02:48]} {[%emt 00:00:17]} e6 {[%clk 00:01:59]} {[%emt 00:00:59]} 5. e4
{[%clk 00:02:49]} {[%emt 00:00:02]} d5 {[%clk 00:01:57]} {[%emt 00:00:04]} 6.
cxd5 {[%clk 00:02:36]} {[%emt 00:00:14]} exd5 {[%clk 00:01:58]} 7. e5 {[%clk
00:02:37]} {[%emt 00:00:02]} Nh5 {[%clk 00:01:46]} {[%emt 00:00:14]} 8. g3
{[%clk 00:02:23]} {[%emt 00:00:16]} g6 {[%clk 00:01:33]} {[%emt 00:00:15]} 9.
f4 {[%clk 00:02:16]} {[%emt 00:00:08]} Ng7 {[%clk 00:01:30]} {[%emt 00:00:05]}
10. Nf3 {[%clk 00:02:16]} {[%emt 00:00:02]} a6 {[%clk 00:01:24]} {[%emt
00:00:07]} 11. Bd3 {[%clk 00:01:56]} {[%emt 00:00:22]} c5 {[%clk 00:01:21]}
{[%emt 00:00:05]} 12. Be3 {[%clk 00:01:51]} {[%emt 00:00:08]} Nd7 {[%clk
00:01:12]} {[%emt 00:00:11]} 13. O-O {[%clk 00:01:48]} {[%emt 00:00:04]} Be7
{[%clk 00:01:13]} {[%emt 00:00:01]} 14. Ne2 {[%clk 00:01:24]} {[%emt 00:00:26]}
O-O {[%clk 00:01:07]} {[%emt 00:00:07]} 15. g4 {[%clk 00:01:24]} {[%emt
00:00:02]} cxd4 {[%clk 00:01:03]} {[%emt 00:00:07]} 16. Nfxd4 {[%clk 00:01:20]}
{[%emt 00:00:06]} Nc5 {[%clk 00:01:02]} {[%emt 00:00:03]} 17. Ng3 {[%clk
00:01:13]} {[%emt 00:00:10]} Nxd3 {[%clk 00:00:55]} {[%emt 00:00:10]} 18. Qxd3
{[%clk 00:01:14]} Rc8 {[%clk 00:00:51]} {[%emt 00:00:06]} 19. Rac1 {[%clk
00:01:09]} {[%emt 00:00:06]} b5 {[%clk 00:00:44]} {[%emt 00:00:09]} 20. Rxc8
{[%clk 00:01:06]} {[%emt 00:00:04]} Qxc8 {[%clk 00:00:44]} {[%emt 00:00:02]} 21.
h3 {[%clk 00:01:03]} {[%emt 00:00:06]} Qc4 {[%clk 00:00:40]} {[%emt 00:00:05]}
22. Qxc4 {[%clk 00:00:54]} {[%emt 00:00:12]} dxc4 {[%clk 00:00:40]} {[%emt
00:00:02]} 23. f5 {[%clk 00:00:47]} {[%emt 00:00:09]} Bh4 {[%clk 00:00:37]}
{[%emt 00:00:05]} 24. Nge2 {[%clk 00:00:43]} {[%emt 00:00:06]} Re8 {[%clk
00:00:37]} {[%emt 00:00:01]} 25. Bf4 {[%clk 00:00:39]} {[%emt 00:00:05]} gxf5
{[%clk 00:00:31]} {[%emt 00:00:09]} 26. gxf5 {[%clk 00:00:40]} {[%emt
00:00:01]} Be4 {[%clk 00:00:32]} 27. Bh2 {[%emt 00:00:24]} 1/2-1/2

[Event "MČR v bleskovém šachu družstev 2019"]
[Site "Teplice, Czech Republic"]
[Date "2019.09.14"]
[Round "14.11"]
[White "Postupa, Martin"]
[Black "Cech, Pavel"]
[Result "0-1"]
[TimeControl "3 mim. + 2 s"]
[BlackTitle "IM"]
[WhiteFideId "325210"]
[WhiteElo "1958"]
[BlackElo "2387"]

1. e4 {[%clk 00:03:03]} {[%emt 00:09:19]} Nf6 {[%clk 00:03:02]} {[%emt
00:00:04]} 2. Nc3 {[%clk 00:03:04]} {[%emt 00:00:01]} Nc6 {[%clk 00:03:03]} 3.
g3 {[%clk 00:03:05]} {[%emt 00:00:03]} e5 {[%clk 00:02:26]} {[%emt 00:00:37]} 4.
Bg2 {[%clk 00:03:06]} {[%emt 00:00:02]} Bc5 {[%clk 00:02:27]} {[%emt 00:00:01]}
5. Nge2 {[%clk 00:03:05]} {[%emt 00:00:02]} O-O {[%clk 00:02:25]} {[%emt
00:00:04]} 6. O-O {[%clk 00:03:05]} {[%emt 00:00:01]} a6 {[%clk 00:02:17]}
{[%emt 00:00:10]} 7. d3 {[%clk 00:03:06]} {[%emt 00:00:02]} d6 {[%clk
00:02:15]} {[%emt 00:00:04]} 8. h3 {[%clk 00:02:55]} {[%emt 00:00:12]} Be6
{[%clk 00:02:10]} {[%emt 00:00:07]} 9. Kh2 {[%clk 00:02:56]} {[%emt 00:00:02]}
d5 {[%clk 00:02:03]} {[%emt 00:00:09]} 10. exd5 {[%clk 00:02:52]} {[%emt
00:00:07]} Nxd5 {[%clk 00:02:03]} {[%emt 00:00:01]} 11. Ne4 {[%clk 00:02:51]}
{[%emt 00:00:02]} Be7 {[%clk 00:02:02]} {[%emt 00:00:03]} 12. N2c3 {[%clk
00:02:49]} {[%emt 00:00:04]} Nb6 {[%clk 00:01:56]} {[%emt 00:00:08]} 13. a3
{[%clk 00:02:44]} {[%emt 00:00:07]} f5 {[%clk 00:01:32]} {[%emt 00:00:26]} 14.
Nd2 {[%clk 00:02:35]} {[%emt 00:00:12]} f4 {[%clk 00:01:32]} {[%emt 00:00:02]}
15. Nf3 {[%clk 00:02:27]} {[%emt 00:00:10]} Qd7 {[%clk 00:01:20]} {[%emt
00:00:14]} 16. Ne4 {[%clk 00:02:21]} {[%emt 00:00:08]} h6 {[%clk 00:01:21]}
{[%emt 00:00:02]} 17. Nh4 {[%clk 00:02:12]} {[%emt 00:00:10]} Bxh4 {[%clk
00:01:14]} {[%emt 00:00:09]} 18. gxh4 {[%clk 00:02:13]} {[%emt 00:00:02]} Qe7
{[%clk 00:00:56]} {[%emt 00:00:20]} 19. Qh5 {[%clk 00:01:34]} {[%emt 00:00:41]}
Rf5 {[%clk 00:00:58]} {[%emt 00:00:02]} 20. Qg4 {[%clk 00:01:28]} {[%emt
00:00:05]} Rg5 {[%clk 00:00:37]} {[%emt 00:00:24]} 21. Qxe6+ {[%clk 00:01:24]}
{[%emt 00:00:07]} Qxe6 {[%clk 00:00:37]} {[%emt 00:00:02]} 22. hxg5 {[%clk
00:01:25]} {[%emt 00:00:01]} hxg5 {[%clk 00:00:28]} {[%emt 00:00:11]} 23. Nxg5
{[%clk 00:01:25]} {[%emt 00:00:02]} Qe7 {[%clk 00:00:28]} {[%emt 00:00:01]} 24.
Ne4 {[%clk 00:01:23]} {[%emt 00:00:04]} Nd4 {[%clk 00:00:28]} {[%emt 00:00:02]}
25. Rg1 {[%clk 00:01:10]} {[%emt 00:00:16]} Nxc2 {[%clk 00:00:24]} {[%emt
00:00:07]} 26. Rb1 {[%clk 00:01:11]} Rd8 {[%clk 00:00:22]} {[%emt 00:00:03]} 27.
Bf1 {[%clk 00:01:08]} {[%emt 00:00:05]} Nd4 {[%clk 00:00:22]} {[%emt 00:00:03]}
28. Ng5 {[%clk 00:00:54]} {[%emt 00:00:15]} Nd5 {[%clk 00:00:20]} {[%emt
00:00:04]} 29. Kh1 {[%clk 00:00:48]} {[%emt 00:00:08]} Rd6 {[%clk 00:00:20]}
{[%emt 00:00:03]} 30. Ne4 {[%clk 00:00:48]} {[%emt 00:00:02]} Rh6 {[%clk
00:00:20]} {[%emt 00:00:02]} 31. b4 {[%clk 00:00:42]} {[%emt 00:00:08]} Qe6
{[%clk 00:00:19]} {[%emt 00:00:02]} 32. Ng5 {[%clk 00:00:37]} {[%emt 00:00:07]}
Qf5 {[%clk 00:00:20]} {[%emt 00:00:01]} 33. Bb2 {[%clk 00:00:30]} {[%emt
00:00:09]} Rh5 {[%clk 00:00:20]} {[%emt 00:00:03]} 34. Bxd4 {[%clk 00:00:23]}
{[%emt 00:00:10]} exd4 {[%clk 00:00:20]} {[%emt 00:00:01]} 35. Ne4 {[%clk
00:00:17]} {[%emt 00:00:08]} Rxh3+ {[%clk 00:00:21]} {[%emt 00:00:02]} 36. Kg2
{[%clk 00:00:17]} {[%emt 00:00:02]} f3# {[%emt 00:00:04]} 0-1

[Event "MČR v bleskovém šachu družstev 2019"]
[Site "Teplice, Czech Republic"]
[Date "2019.09.14"]
[Round "14.12"]
[White "Sodoma, Jan"]
[Black "Krouzel, Jaroslav"]
[Result "1-0"]
[TimeControl "3 mim. + 2 s"]
[WhiteTitle "IM"]
[BlackFideId "301566"]
[WhiteElo "2193"]
[BlackElo "2086"]

1. Nf3 {[%clk 00:03:02]} f5 {[%clk 00:03:03]} 2. g3 {[%clk 00:03:02]} {[%emt
00:00:02]} Nf6 {[%clk 00:03:04]} {[%emt 00:00:01]} 3. Bg2 {[%clk 00:03:03]} d6
{[%clk 00:03:05]} 4. d4 {[%clk 00:03:02]} {[%emt 00:00:04]} g6 {[%clk
00:03:07]} {[%emt 00:00:01]} 5. b3 {[%clk 00:03:01]} {[%emt 00:00:04]} Bg7
{[%clk 00:03:08]} 6. Bb2 {[%clk 00:03:02]} O-O {[%clk 00:03:07]} {[%emt
00:00:02]} 7. O-O {[%clk 00:03:03]} {[%emt 00:00:01]} c6 {[%clk 00:03:07]}
{[%emt 00:00:03]} 8. Nbd2 {[%clk 00:03:02]} {[%emt 00:00:02]} h6 {[%clk
00:03:03]} {[%emt 00:00:06]} 9. c4 {[%clk 00:03:01]} {[%emt 00:00:03]} Qc7
{[%clk 00:02:57]} {[%emt 00:00:07]} 10. Qc2 {[%clk 00:02:59]} {[%emt 00:00:04]}
Nbd7 {[%clk 00:02:50]} {[%emt 00:00:09]} 11. e4 {[%clk 00:02:54]} {[%emt
00:00:07]} e6 {[%clk 00:02:39]} {[%emt 00:00:13]} 12. Rae1 {[%clk 00:02:28]}
{[%emt 00:00:28]} d5 {[%clk 00:02:14]} {[%emt 00:00:27]} 13. cxd5 {[%clk
00:02:24]} {[%emt 00:00:06]} exd5 {[%clk 00:02:15]} {[%emt 00:00:01]} 14. exf5
{[%clk 00:02:12]} {[%emt 00:00:14]} gxf5 {[%clk 00:01:54]} {[%emt 00:00:23]} 15.
Qxf5 {[%clk 00:02:05]} {[%emt 00:00:09]} Nc5 {[%clk 00:01:46]} {[%emt
00:00:10]} 16. Qg6 {[%clk 00:01:56]} {[%emt 00:00:11]} Nce4 {[%clk 00:01:42]}
{[%emt 00:00:06]} 17. Nxe4 {[%clk 00:01:49]} {[%emt 00:00:09]} Nxe4 {[%clk
00:01:30]} {[%emt 00:00:14]} 18. Bc1 {[%clk 00:01:00]} {[%emt 00:00:51]} Bf5
{[%clk 00:01:22]} {[%emt 00:00:09]} 19. Qh5 {[%clk 00:01:01]} {[%emt 00:00:01]}
Rae8 {[%clk 00:01:13]} {[%emt 00:00:11]} 20. Ne5 {[%clk 00:01:00]} {[%emt
00:00:03]} Nf6 {[%clk 00:01:01]} {[%emt 00:00:14]} 21. Qxf5 {[%emt 00:00:03]}
1-0